bitfinex/quotes_ETHUSD_20241215
["timestamp","ask_amount","ask_price","bid_price","bid_amount"]
[1734223213322,0.7612,3856.7,3856.0,1.08116601]
[1734223213323,0.7612,3856.6,3856.0,1.08116601]
[1734223213629,0.7612,3856.4,3855.7,1.08116601]
[1734223213825,2.59311,3856.4,3855.8,2.2419902]
[1734223214062,0.7612,3856.2,3855.5,1.08116601]
[1734223214223,0.7612,3856.2,3855.5,1.97802765]
[1734223214420,0.7612,3856.2,3855.4,1.1613253]
[1734223214624,0.7612,3856.2,3855.5,0.89671131]
[1734223215582,0.7612,3856.2,3855.4,1.1613253]
[1734223215780,0.7612,3856.1,3855.4,1.1613253]
[1734223216950,2.97557402,3856.7,3855.1,3.0]
[1734223216951,0.7612,3855.9,3855.1,1.1613253]
[1734223217143,0.7612,3855.9,3855.2,0.89640424]
[1734223217345,0.7612,3855.8,3855.1,1.1613253]
[1734223217571,0.7612,3855.8,3855.0,0.162726]
[1734223219583,3.35471,3855.8,3855.0,0.162726]
[1734223219946,3.35471,3855.8,3855.0,1.3240513]
[1734223220450,2.59351,3855.8,3855.0,1.3240513]
[1734223220662,0.7612,3855.7,3855.0,1.3240513]
[1734223221361,0.75807969,3855.7,3855.0,1.3240513]
[1734223221558,0.75807969,3855.7,3855.0,0.162726]
[1734223222087,0.1919405,3855.6,3855.0,0.162726]
[1734223222282,2.5937,3855.5,3855.0,0.162726]
[1734223223048,0.1919405,3855.6,3855.0,0.162726]
[1734223223049,2.59377,3855.4,3855.0,0.162726]
[1734223223259,2.59384,3855.3,3855.0,0.162726]
[1734223223458,2.59391,3855.2,3855.0,0.162726]
[1734223224299,0.7612,3855.1,3855.0,0.162726]
[1734223233313,0.89485668,3855.1,3855.0,0.162726]
[1734223239818,0.13365668,3855.1,3855.0,0.162726]
[1734223239977,0.52186992,3855.6,3855.0,0.162726]
[1734223240198,0.93255561,3855.7,3855.0,0.162726]
[1734223241113,0.13365561,3855.7,3855.0,0.162726]
[1734223242470,0.13365561,3855.7,3855.0,2.756736]
[1734223242817,0.13365561,3855.7,3855.0,3.1083596]
[1734223244282,0.13365561,3855.7,3855.0,0.5143496]
[1734223244490,0.13365561,3855.7,3855.1,0.7595]
[1734223245421,1.93813175,3855.6,3855.0,0.162726]
[1734223246984,0.7759,3855.6,3855.0,0.162726]
[1734223249940,1.93813175,3855.6,3855.0,0.162726]
[1734223250142,0.20717874,3855.5,3855.0,0.162726]
[1734223252319,0.7759,3855.4,3855.0,0.162726]
[1734223252829,1.16223175,3855.3,3855.0,0.162726]
[1734223254926,0.7759,3855.4,3855.0,0.162726]
[1734223260567,0.13370916,3855.3,3855.0,0.162726]
[1734223262369,0.48403608,3855.3,3855.0,0.162726]
[1734223262570,0.13370916,3855.3,3855.0,0.162726]
[1734223266334,0.13370916,3855.3,3855.1,0.826]
[1734223268380,0.13370916,3855.3,3855.0,0.162726]
[1734223270508,0.7651,3855.5,3855.0,0.162726]
[1734223272196,0.13370471,3855.7,3855.1,0.92353888]
[1734223272402,0.13370471,3855.7,3855.0,0.3697152]
[1734223272403,0.13370471,3855.7,3855.2,0.89760123]
[1734223272709,0.7651,3856.1,3855.3,2.24376095]
[1734223273006,0.2488,3856.2,3855.2,0.55]
[1734223273007,0.38408367,3856.2,3855.4,0.826]
[1734223274263,0.61522521,3856.2,3855.4,0.826]
[1734223274875,3.20845521,3856.2,3855.4,0.826]
[1734223276439,3.4026,3856.1,3855.2,0.55]
[1734223276611,0.8093,3856.1,3855.3,0.89736073]
[1734223277732,0.8093,3856.1,3855.2,0.55]
[1734223277733,3.40262,3856.1,3855.2,0.55]
[1734223277928,3.40262,3856.1,3855.2,1.12993812]
[1734223278673,3.40262,3856.1,3855.3,0.89749398]
[1734223279117,3.40262,3856.1,3855.2,1.12993812]
[1734223279326,0.38408367,3856.2,3855.3,1.71939028]
[1734223279627,0.38408367,3856.2,3855.4,1.18255068]
[1734223279831,0.38408367,3856.2,3855.4,0.28493284]
[1734223280037,0.38408367,3856.2,3855.6,0.8219]
[1734223280435,0.2488,3856.2,3855.7,1.44764783]
[1734223280575,0.2488,3856.2,3855.8,0.8219]
[1734223280775,0.2488,3856.2,3855.9,0.36419457]
[1734223281034,0.2488,3856.2,3855.8,0.8219]
[1734223281525,0.2488,3856.2,3855.9,0.89760573]
[1734223282313,0.2488,3856.2,3855.8,0.8219]
[1734223282614,0.2488,3856.2,3855.9,0.89763046]
[1734223282812,0.2488,3856.2,3855.8,0.8219]
[1734223283013,0.2488,3856.2,3855.9,1.14293565]
[1734223283315,0.2488,3856.2,3855.9,0.2453066]
[1734223284526,0.2488,3856.2,3856.0,0.89768251]
[1734223284814,0.2488,3856.2,3855.9,0.2453066]
[1734223285014,0.2488,3856.2,3856.0,3.89767467]
[1734223285193,0.2488,3856.2,3856.1,3.44559518]
[1734223286516,0.2488,3856.2,3856.1,2.09910958]
[1734223286717,0.2488,3856.2,3856.1,0.89767467]
[1734223287056,0.2488,3856.2,3856.0,0.89767467]
[1734223287203,0.2488,3856.2,3856.0,0.89740332]
[1734223287518,0.2488,3856.2,3856.0,5.24329215]
[1734223287719,0.2488,3856.2,3856.1,0.89740332]
[1734223288317,0.2488,3856.2,3855.9,3.2453066]
[1734223288318,0.2488,3856.2,3855.9,0.2453066]
[1734223288525,0.2488,3856.2,3856.0,0.89706897]
[1734223289722,2.84203,3856.2,3855.7,1.08116601]
[1734223289907,2.84203,3856.2,3855.2,0.8006]
[1734223289908,0.7633,3855.9,3855.2,1.88176601]
[1734223290108,2.59338,3856.0,3855.3,2.24255662]
[1734223290309,2.59338,3856.0,3855.2,1.08116601]
[1734223290310,0.2488,3856.2,3855.9,0.8006]
[1734223290828,0.2488,3856.2,3855.9,3.04265601]
[1734223291026,0.2488,3856.2,3856.0,5.24205601]
[1734223291228,0.2488,3856.2,3856.1,1.72545309]
[1734223291528,0.2488,3856.2,3856.1,0.82860538]
[1734223291728,0.2488,3856.2,3856.1,1.7252519]
[1734223292529,0.2488,3856.2,3856.1,1.72509935]
[1734223292892,0.2488,3856.2,3856.1,0.82860538]
[1734223293090,0.2488,3856.2,3856.1,1.72509793]
[1734223293357,0.2488,3856.2,3856.1,1.72499386]
[1734223293544,0.2488,3856.2,3856.1,0.82860538]
[1734223295999,0.2488,3856.2,3856.0,0.55]
[1734223299195,0.2488,3856.2,3855.7,1.08116601]
[1734223299564,0.2488,3856.2,3855.4,1.08116601]
[1734223299565,0.7605,3856.1,3855.4,1.08116601]
[1734223299701,0.7605,3856.1,3855.1,1.84566601]
[1734223299897,0.7605,3856.1,3855.2,1.463207]
[1734223300152,0.7605,3856.1,3855.2,0.56710858]
[1734223301150,0.7605,3856.1,3855.3,0.89622476]
[1734223301352,0.7605,3856.1,3855.3,3.89622476]
[1734223301661,0.7605,3856.1,3855.3,1.02278171]
[1734223302208,0.7605,3856.1,3855.2,0.56710858]
[1734223304555,0.7605,3856.1,3855.3,0.89662288]
[1734223304721,0.7605,3856.1,3855.2,0.56710858]
[1734223304923,0.7605,3856.1,3855.3,0.89662286]
[1734223310918,0.7605,3856.1,3855.4,0.89662286]
[1734223311058,0.89581044,3856.1,3855.4,0.89662286]
[1734223311259,0.89581044,3856.1,3855.4,2.24260208]
[1734223313202,0.89581044,3856.1,3855.5,0.55]
[1734223313370,0.2488,3856.2,3855.5,0.55]
[1734223313371,0.2488,3856.2,3855.7,0.55]
[1734223313573,0.2488,3856.2,3855.8,0.89742429]
[1734223314482,0.2488,3856.2,3855.7,0.55]
[1734223314682,0.2488,3856.2,3855.8,0.8974746]
[1734223316107,0.2488,3856.2,3855.8,1.26656184]
[1734223316407,0.2488,3856.2,3855.9,0.89766851]
[1734223318716,0.2488,3856.2,3856.0,2.24434694]
[1734223318915,0.2488,3856.2,3855.8,0.36908724]
[1734223319087,0.2488,3856.2,3855.9,0.8977807]
[1734223321086,0.2488,3856.2,3856.0,0.89786069]
[1734223321420,0.2488,3856.2,3855.8,1.45025325]
[1734223321719,0.2488,3856.2,3855.9,3.55433315]
[1734223322018,0.2488,3856.2,3856.0,2.24470303]
[1734223322617,0.2488,3856.2,3856.1,0.89788121]
[1734223322785,0.2488,3856.2,3856.0,2.24477885]
[1734223322985,0.2488,3856.2,3856.1,0.89788121]
[1734223323217,0.2488,3856.2,3856.1,0.44509091]
[1734223323519,0.2488,3856.2,3856.1,1.34297212]
[1734223323681,0.2488,3856.2,3856.1,2.68989331]
[1734223329556,0.2488,3856.2,3856.1,2.69020021]
[1734223331246,0.2488,3856.2,3856.1,6.26612932]
[1734223331449,0.7931,3857.3,3856.6,0.7812]
[1734223331675,2.15006461,3858.2,3857.1,1.16223175]
[1734223331676,0.7931,3857.8,3857.1,1.16223175]
[1734223332044,0.7931,3857.8,3857.2,0.89766924]
[1734223333557,0.7931,3857.8,3857.1,1.16223175]
[1734223334579,0.7931,3857.8,3857.1,1.94343175]
[1734223334796,0.7931,3857.8,3857.2,0.60292133]
[1734223335674,0.7931,3857.8,3857.1,1.94343175]
[1734223336082,0.7931,3857.8,3857.2,0.57592135]
[1734223336284,0.7931,3857.8,3857.3,1.16223175]
[1734223336659,1.4520326,3858.1,3857.3,1.16223175]
[1734223337315,0.13526055,3858.1,3857.8,1.16223175]
[1734223337597,0.13526055,3858.1,3857.8,1.35483493]
[1734223339198,0.7911,3858.4,3858.0,1.16223175]
[1734223340365,0.7911,3858.6,3858.2,1.16223175]
[1734223340568,0.7911,3858.6,3858.2,1.18814734]
[1734223340778,0.13523745,3858.7,3858.2,1.16223175]
[1734223342805,0.13523745,3858.7,3858.3,0.7638]
[1734223346337,0.13523745,3858.7,3858.4,1.16223175]
[1734223346939,1.26804716,3859.2,3858.6,1.16223175]
[1734223348336,1.26804716,3859.2,3858.4,1.16223175]
[1734223348551,1.26804716,3859.2,3858.4,1.18814387]
[1734223348903,1.26804716,3859.2,3858.5,0.55]
[1734223349095,1.26804716,3859.2,3858.6,0.5694547]
[1734223349302,1.26804716,3859.2,3858.7,0.55]
[1734223349303,0.50644716,3859.2,3858.7,0.55]
[1734223349604,0.13521454,3859.4,3858.8,0.7846]
[1734223352599,0.7616,3859.9,3858.9,1.73814223]
[1734223352803,0.7616,3859.9,3859.1,0.55]
[1734223352996,0.7616,3859.9,3859.1,1.71223175]
[1734223353220,0.7616,3859.9,3859.1,0.55]
[1734223354137,0.13518466,3860.0,3859.4,0.7846]
[1734223355501,1.27658574,3860.4,3859.5,4.73813816]
[1734223355729,0.7666,3860.4,3859.7,0.55]
[1734223356307,0.7666,3860.4,3859.7,1.71223175]
[1734223356543,0.13516998,3860.5,3859.8,0.8238]
[1734223356760,0.13516998,3860.5,3859.8,3.8238]
[1734223357542,0.13516998,3860.5,3859.9,0.02590384]
[1734223357757,0.13516998,3860.5,3859.9,0.63732478]
[1734223357962,0.13516998,3860.5,3859.9,1.79955653]
[1734223358264,0.13516998,3860.5,3859.9,0.55]
[1734223359125,0.7666,3861.1,3860.3,1.16223175]
[1734223359324,0.7666,3861.1,3860.4,0.02590144]
[1734223359526,0.7666,3861.1,3860.4,0.55]
[1734223359866,0.7666,3861.1,3860.4,1.02122318]
[1734223360512,0.7666,3861.1,3860.0,0.8238]
[1734223360513,2.59011,3860.9,3860.0,0.8238]
[1734223360717,2.59011,3860.9,3860.1,0.55]
[1734223361648,0.7666,3860.8,3860.1,0.55]
[1734223366278,2.59011,3860.9,3860.1,0.55]
[1734223366560,2.59011,3860.9,3860.2,0.13738]
[1734223368790,0.7666,3860.8,3860.2,0.13738]
[1734223369405,0.7666,3861.1,3860.2,0.13738]
[1734223369626,3.35655,3861.1,3860.2,0.13738]
[1734223369999,0.7666,3861.1,3860.2,0.13738]
[1734223370324,2.59001,3861.0,3860.2,0.13738]
[1734223370509,2.59001,3861.0,3860.3,0.451118]
[1734223371026,2.59001,3861.0,3860.2,0.13738]
[1734223372224,2.59001,3861.0,3860.3,0.8176]
[1734223372627,0.7666,3861.1,3860.3,0.8176]
[1734223372990,0.13514598,3861.2,3860.4,1.71223175]
[1734223373193,0.7666,3861.4,3860.8,0.8176]
[1734223373421,2.58956,3861.7,3860.9,0.22388044]
[1734223373589,0.13512371,3861.6,3860.9,0.22388044]
[1734223375505,0.13512371,3861.6,3860.9,0.19798317]
[1734223376035,0.7666,3861.4,3860.6,0.55]
[1734223376238,0.7666,3861.4,3860.5,0.8176]
[1734223376441,0.7666,3861.4,3860.6,0.55]
[1734223376947,0.7666,3861.7,3861.3,1.16223175]
[1734223377101,0.7666,3862.1,3861.3,1.97983175]
[1734223377301,2.58914,3862.3,3861.4,0.22387789]
[1734223377501,0.7666,3862.4,3861.4,0.22387789]
[1734223377702,0.13510153,3862.2,3861.5,0.55]
[1734223383056,0.13510153,3862.2,3861.6,0.7559]
[1734223383259,0.13510153,3862.2,3861.7,0.45297749]
[1734223383979,0.7866,3862.7,3861.7,0.45297749]
[1734223384479,0.13509564,3862.6,3861.7,0.45297749]
[1734223385546,0.13509564,3862.6,3861.8,0.7829]
[1734223388867,0.13509564,3862.6,3861.9,0.02588852]
[1734223389582,0.13509564,3862.6,3861.8,0.7829]
[1734223389888,0.13509564,3862.6,3861.9,0.54239998]
[1734223390245,2.72402564,3862.6,3861.9,0.54239998]
[1734223390793,2.58913,3862.3,3861.9,0.54239998]
[1734223390950,2.58913,3862.3,3861.7,0.45297749]
[1734223390951,2.58913,3862.3,3861.5,1.3329]
[1734223392064,0.7685,3862.5,3861.5,1.3329]
[1734223392392,2.72406564,3862.6,3861.5,1.3329]
[1734223392765,2.72406564,3862.6,3861.6,0.7829]
[1734223393787,0.13509564,3862.6,3861.6,0.7829]
[1734223393988,2.58943,3861.9,3860.8,1.94513175]
[1734223394284,2.58943,3861.9,3860.9,0.7829]
[1734223394488,0.13509564,3862.6,3861.2,0.7829]
[1734223394659,2.58917,3862.3,3861.2,0.7829]
[1734223395483,2.58917,3862.3,3861.3,0.55]
[1734223395691,2.58917,3862.3,3861.3,0.79951317]
[1734223396098,2.58917,3862.3,3861.4,0.7829]
[1734223396675,0.13509564,3862.6,3861.4,0.7829]
[1734223396876,2.72406564,3862.6,3861.6,0.7829]
[1734223397177,2.72406564,3862.6,3861.8,0.7829]
[1734223397178,0.13509564,3862.6,3861.8,0.7829]
[1734223399772,2.72404564,3862.6,3861.8,0.7829]
[1734223400284,3.416,3862.5,3861.8,0.7829]
[1734223401406,0.827,3862.5,3861.8,0.7829]
[1734223402597,2.58915,3862.3,3861.8,0.7829]
[1734223403319,0.827,3862.5,3861.7,0.25210246]
[1734223403626,0.13509564,3862.6,3861.4,0.8056]
[1734223403627,0.827,3862.3,3861.4,0.8056]
[1734223404106,2.58941,3861.9,3861.4,0.8056]
[1734223404694,2.72451759,3861.9,3861.4,0.8056]
[1734223405636,2.58956,3861.7,3861.4,0.8056]
[1734223405839,2.58956,3861.7,3860.7,2.24801329]
[1734223405840,1.09086676,3861.7,3861.1,0.8229]
[1734223406107,2.58982,3861.3,3860.5,0.8229]
[1734223406612,2.58965,3861.6,3860.7,3.8229]
[1734223406934,2.58965,3861.6,3860.7,0.8229]
[1734223407082,2.58965,3861.6,3860.8,0.89447362]
[1734223407270,2.58965,3861.6,3860.9,0.58796054]
[1734223407602,2.58965,3861.6,3861.0,0.8229]
[1734223409110,2.58967,3861.5,3861.0,0.8229]
[1734223410575,2.58975,3861.4,3861.0,0.8229]
[1734223411892,0.13510759,3861.9,3861.0,0.8229]
[1734223412118,2.58957,3861.7,3861.0,0.8229]
[1734223415119,0.13510759,3861.9,3861.0,0.8229]
[1734223415304,2.58967,3861.5,3861.0,0.8229]
[1734223417211,0.7962,3861.4,3860.8,0.55]
[1734223417399,0.7962,3861.4,3860.9,0.89626874]
[1734223418136,0.7962,3861.4,3860.8,0.55]
[1734223418319,0.7962,3861.4,3860.9,5.24113125]
[1734223418524,0.7962,3861.4,3861.0,0.89664759]
[1734223418702,0.7962,3861.4,3860.8,0.55]
[1734223418916,0.7962,3861.4,3860.9,5.24161917]
[1734223419128,0.7962,3861.4,3861.0,0.89664767]
[1734223419571,0.7962,3861.4,3860.8,4.25274539]
[1734223419776,0.7962,3861.4,3860.9,5.24169547]
[1734223419917,0.7962,3861.4,3861.0,0.89667819]
[1734223420571,3.38595,3861.4,3860.9,3.0]
[1734223420847,3.38595,3861.4,3861.0,0.89669563]
[1734223421047,3.38595,3861.4,3860.8,4.25274539]
[1734223421248,3.38595,3861.4,3860.9,6.01475477]
[1734223421420,3.38595,3861.4,3861.0,0.89669394]
[1734223422652,3.38595,3861.4,3860.9,0.77301992]
[1734223422830,3.38595,3861.4,3861.0,0.89672634]
[1734223424545,3.3828288,3861.4,3861.0,0.89672634]
[1734223424742,0.7930788,3861.4,3861.0,0.89672634]
[1734223424918,2.58989,3861.2,3861.0,0.89672634]
[1734223425118,2.58994,3861.1,3860.7,1.84878154]
[1734223425323,2.58994,3861.1,3860.7,0.763]
[1734223430033,0.13512097,3861.3,3860.7,0.763]
[1734223430237,2.72493097,3861.3,3860.7,0.763]
[1734223431874,0.13512097,3861.3,3860.7,0.94787815]
[1734223432085,0.13512097,3861.3,3860.8,2.81669131]
[1734223432369,0.13512097,3861.3,3860.9,0.89632431]
[1734223435355,0.13512097,3861.3,3860.8,0.55]
[1734223435551,0.13512097,3861.3,3860.9,2.24123407]
[1734223435872,0.13512097,3861.3,3860.8,0.55]
[1734223435873,0.13512097,3861.3,3861.0,1.37898112]
[1734223436171,0.13512097,3861.3,3861.0,0.48248938]
[1734223439478,0.13512097,3861.3,3861.1,0.8967911]
[1734223440145,0.13512097,3861.3,3861.0,0.48248938]
[1734223440450,0.13512097,3861.3,3861.1,0.89677444]
[1734223440644,3.35934,3861.7,3861.2,0.43792638]
[1734223440848,3.35934,3861.7,3861.0,0.48248938]
[1734223441038,3.49445875,3861.7,3861.1,0.89678896]
[1734223441909,0.90491875,3861.7,3861.1,0.89678896]
[1734223442211,2.58961,3861.6,3861.1,0.89678896]
[1734223443246,2.58961,3861.6,3861.0,0.48248938]
[1734223443610,2.58961,3861.6,3861.1,2.2425533]
[1734223443745,2.58961,3861.6,3861.0,0.48248938]
[1734223443941,2.58961,3861.6,3861.1,2.24255336]
[1734223444173,0.90491875,3861.7,3860.7,1.08578154]
[1734223444174,0.7698,3861.2,3860.7,1.08578154]
[1734223444381,0.7698,3861.2,3860.4,5.17156744]
[1734223444382,3.35967,3861.2,3860.8,2.24304455]
[1734223444600,0.7698,3861.2,3860.4,4.08578154]
[1734223444890,2.59012,3860.9,3860.5,2.24323673]
[1734223445194,2.59012,3860.9,3860.6,0.89746529]
[1734223445343,2.59012,3860.9,3860.3,1.08578154]
[1734223445548,2.59012,3860.9,3860.4,2.24341367]
[1734223445797,2.59012,3860.9,3860.5,0.89736547]
[1734223445945,2.59012,3860.9,3860.2,1.08578154]
[1734223446152,2.59012,3860.9,3860.3,2.24343283]
[1734223446448,2.59012,3860.9,3860.4,2.24343283]
[1734223446686,2.59012,3860.9,3860.2,1.08578154]
[1734223446893,0.7934,3860.7,3860.3,2.24340606]
[1734223447061,0.7934,3860.7,3860.4,0.89736242]
[1734223447393,0.7934,3860.7,3860.2,1.08578154]
[1734223447700,0.7934,3860.7,3860.3,2.24341718]
[1734223447995,0.7934,3860.7,3860.4,0.89736687]
[1734223448191,2.37707188,3860.7,3860.1,1.08578154]
[1734223448403,2.37707188,3860.7,3860.2,0.89738185]
[1734223448404,1.95563175,3860.7,3860.2,0.89738185]
[1734223448700,1.95563175,3860.7,3860.0,1.08578154]
[1734223448701,1.95563175,3860.7,3859.9,1.08578154]
[1734223448903,1.95563175,3860.7,3860.0,2.24359836]
[1734223449107,1.95563175,3860.7,3860.1,0.89743934]
[1734223449268,2.59043,3860.4,3859.8,4.08578154]
[1734223449464,2.59043,3860.4,3859.9,2.81496981]
[1734223449701,2.59043,3860.4,3860.0,2.24352443]
[1734223449907,2.59043,3860.4,3860.1,0.89740977]
[1734223450054,2.59043,3860.4,3859.9,1.65722692]
[1734223450259,2.59043,3860.4,3860.0,2.24352242]
[1734223450458,2.59043,3860.4,3860.1,0.89740897]
[1734223450653,2.59043,3860.4,3859.9,0.57144538]
[1734223451010,2.59043,3860.4,3860.0,2.24310283]
[1734223451164,0.7934,3860.3,3859.9,0.57144538]
[1734223451496,0.7934,3860.3,3860.0,2.24279335]
[1734223451697,0.7934,3860.3,3860.0,2.93279576]
[1734223451992,0.7934,3860.3,3860.0,0.69000203]
[1734223453889,0.7934,3860.3,3859.8,0.55]
[1734223454064,0.7934,3860.3,3859.9,2.2420959]
[1734223454389,0.7934,3860.3,3859.8,0.55]
[1734223454596,0.7934,3860.3,3859.9,0.89672069]
[1734223455997,0.7934,3860.3,3859.8,0.55]
[1734223456153,0.7934,3860.3,3859.9,1.36018064]
[1734223456351,0.7934,3860.3,3860.0,0.89650934]
[1734223457166,0.7934,3860.3,3859.9,0.46357815]
[1734223460192,0.7934,3860.3,3859.7,1.08578154]
[1734223460400,0.7934,3860.3,3859.8,1.34443749]
[1734223460620,0.7934,3860.3,3859.9,0.89629166]
[1734223460796,0.7934,3860.3,3859.7,1.08578154]
[1734223460974,0.7934,3860.3,3859.7,6.326474]
[1734223461158,0.7934,3860.3,3859.8,2.24069246]
[1734223461495,0.7934,3860.3,3859.9,1.52892438]
[1734223461660,0.7934,3860.3,3859.9,0.6326474]
[1734223463166,3.38387,3860.3,3859.6,1.08578154]
[1734223463365,3.38387,3860.3,3859.6,0.8962103]
[1734223463669,2.59056,3860.2,3859.4,1.08578154]
[1734223463996,2.59056,3860.2,3859.5,3.0]
[1734223464171,2.59056,3860.2,3859.6,0.89626236]
[1734223464577,2.59056,3860.2,3859.3,4.08578154]
[1734223464898,2.59056,3860.2,3859.5,3.0]
[1734223465109,2.59056,3860.2,3859.6,0.89618842]
[1734223465298,0.7934,3860.3,3859.4,4.73612692]
[1734223465498,0.7934,3860.3,3859.5,5.24025983]
[1734223465802,0.7934,3860.3,3859.6,0.89610393]
[1734223465964,0.7934,3860.3,3859.6,0.56322308]
[1734223466164,3.38388,3860.3,3859.6,0.56322308]
[1734223466400,3.38388,3860.3,3859.4,0.65034538]
[1734223466610,3.38388,3860.3,3859.5,2.24013602]
[1734223466901,3.38388,3860.3,3859.6,0.89605441]
[1734223467197,3.38388,3860.3,3859.4,3.65034538]
[1734223467376,3.38388,3860.3,3859.5,2.24004282]
[1734223467573,3.38388,3860.3,3859.5,1.07651697]
[1734223468203,3.38388,3860.3,3859.3,1.08578154]
[1734223468408,3.38388,3860.3,3859.3,3.32574886]
[1734223468567,3.38388,3860.3,3859.4,5.23996732]
[1734223468765,3.38388,3860.3,3859.5,0.89598693]
[1734223468989,3.38388,3860.3,3859.3,1.08578154]
[1734223469191,3.38388,3860.3,3859.4,0.65034538]
[1734223469522,3.38388,3860.3,3859.5,0.89599437]
[1734223470610,0.7934,3860.3,3859.5,0.89599437]
[1734223470809,2.59062,3860.1,3859.5,0.89599437]
[1734223475093,0.7651,3860.0,3859.5,0.89599437]
[1734223475425,0.7651,3860.0,3859.6,0.45463397]
[1734223476027,0.7651,3860.0,3859.2,1.87478154]
[1734223476194,0.7651,3860.0,3859.3,5.23959051]
[1734223476397,0.7651,3860.0,3859.4,2.23959051]
[1734223476597,0.7651,3860.0,3859.5,0.89582919]
[1734223476917,0.7651,3860.0,3859.3,3.0]
[1734223477093,0.7651,3860.0,3859.4,2.72704833]
[1734223477296,0.7651,3860.0,3859.5,3.89582807]
[1734223477601,3.35577,3860.0,3859.4,0.48747815]
[1734223481492,0.13516546,3859.9,3859.5,0.89609386]
[1734223482243,0.13516546,3859.9,3859.2,1.08578154]
[1734223482244,2.59082,3859.8,3859.2,1.08578154]
[1734223482402,3.37378,3859.7,3859.3,0.89622839]
[1734223482602,3.37378,3859.7,3859.0,4.08578154]
[1734223482603,3.37378,3859.7,3859.0,1.6514262]
[1734223482799,3.37378,3859.7,3859.1,2.2406619]
[1734223483030,3.37378,3859.7,3859.2,0.89626476]
[1734223483228,3.37378,3859.7,3859.0,0.56564466]
[1734223483428,3.37378,3859.7,3859.1,2.94644538]
[1734223483699,3.37378,3859.7,3859.2,0.89635021]
[1734223485809,0.7829,3859.7,3859.2,0.89635021]
[1734223486136,0.7829,3859.7,3859.2,3.35285263]
[1734223486346,0.13516546,3859.9,3859.3,2.24116102]
[1734223486554,0.8178,3859.4,3859.3,2.24116102]
[1734223486783,3.40889,3859.4,3858.9,3.0]
[1734223487065,3.40889,3859.4,3859.0,0.89658763]
[1734223487351,2.59123,3859.2,3858.6,1.08578154]
[1734223487562,0.8178,3859.3,3858.7,2.24176127]
[1734223487849,0.8178,3859.0,3858.3,1.08578154]
[1734223488053,0.8178,3859.0,3858.4,2.24211443]
[1734223488239,0.8178,3859.0,3858.5,0.89684577]
[1734223488440,0.8178,3859.0,3858.3,1.08578154]
[1734223488657,0.8178,3859.0,3858.4,2.2420926]
[1734223488821,0.8178,3859.0,3858.5,0.89683704]
[1734223489420,3.40916,3859.0,3858.5,0.89683704]
[1734223490256,3.40916,3859.0,3858.4,0.41601741]
[1734223490461,2.59149,3858.8,3858.2,1.08578154]
[1734223490663,2.59149,3858.8,3858.2,0.89679756]
[1734223490955,2.59149,3858.8,3858.3,0.89679756]
[1734223491257,2.59149,3858.8,3858.0,1.08578154]
[1734223491420,2.59149,3858.8,3858.1,0.65467539]
[1734223491619,2.59149,3858.8,3858.2,2.2414787]
[1734223491958,1.16223175,3858.9,3858.2,5.2414787]
[1734223492121,3.40942,3858.6,3858.1,0.65467539]
[1734223492620,0.8178,3858.6,3858.1,0.65467539]
[1734223492826,0.8178,3858.6,3858.2,0.44869754]
[1734223493038,0.8178,3858.6,3857.9,0.8323]
[1734223493246,0.8178,3858.6,3858.0,0.89638118]
[1734223494872,0.8178,3859.1,3858.1,2.79020879]
[1734223495172,0.8178,3859.1,3858.3,0.8323]
[1734223495362,0.8178,3859.1,3858.4,0.4734204]
[1734223496463,0.8178,3859.1,3858.3,0.8323]
[1734223497946,1.98003175,3859.1,3858.3,0.8323]
[1734223498143,1.98003175,3859.1,3857.9,4.08578154]
[1734223498144,1.98003175,3859.1,3858.0,1.3823]
[1734223498451,1.98003175,3859.1,3858.1,0.89557127]
[1734223498623,2.59136,3859.0,3858.1,0.89557127]
[1734223498826,2.59136,3859.0,3858.2,0.22778713]
[1734223499268,1.98003175,3859.1,3858.2,0.22778713]
[1734223499473,0.7943,3858.8,3858.2,0.22778713]
[1734223500354,2.59113,3859.4,3858.2,0.22778713]
[1734223500556,0.13516546,3859.9,3858.3,6.97181552]
[1734223500557,2.59089,3859.7,3858.3,6.97181552]
[1734223500856,0.7943,3859.6,3858.6,0.8041]
[1734223501785,0.13517592,3859.5,3858.6,0.8041]
[1734223501949,1.29740767,3859.5,3858.6,0.8041]
[1734223502148,3.88842767,3859.5,3858.6,0.8041]
[1734223505360,1.29740767,3859.5,3858.6,0.8041]
[1734223505568,1.29740767,3859.5,3858.7,0.58346431]
[1734223507008,0.13517592,3859.5,3858.8,0.55]
[1734223507292,0.7765,3860.0,3858.9,5.59137]
[1734223507442,0.7765,3860.0,3859.1,3.0]
[1734223507643,0.7765,3860.0,3859.0,2.993317]
[1734223507644,0.13512527,3860.2,3859.3,0.7545]
[1734223510050,0.13512527,3860.2,3859.4,1.71223175]
[1734223510272,0.13512527,3860.2,3859.7,0.7545]
[1734223511595,0.13512527,3860.2,3859.3,1.08578154]
[1734223511596,0.7765,3860.1,3859.3,4.84028154]
[1734223511792,0.7765,3860.1,3859.3,3.7545]
[1734223511951,0.7765,3860.1,3859.4,0.59813078]
[1734223512158,0.13512527,3860.2,3859.4,0.59813078]
[1734223517794,0.13512527,3860.2,3859.4,3.59813078]
[1734223517996,0.13512527,3860.2,3859.7,0.7545]
[1734223518305,0.13512527,3860.2,3859.7,3.7545]
[1734223518505,0.13512527,3860.2,3859.8,0.689542]
[1734223521364,0.13512527,3860.2,3859.8,3.280332]
[1734223524507,0.7765,3861.3,3860.1,0.7545]
[1734223524803,0.7765,3861.3,3860.4,2.59038]
[1734223524960,0.13506905,3861.2,3860.5,2.61622041]
[1734223525364,0.13506905,3861.2,3860.5,2.59032]
[1734223527001,0.13506905,3861.2,3860.4,0.3370781]
[1734223527167,0.13506905,3861.2,3860.5,3.79950006]
[1734223527393,0.13506905,3861.2,3860.6,0.78891999]
[1734223527767,0.13506905,3861.2,3860.7,3.0]
[1734223530342,0.7609,3861.7,3860.7,3.0]
[1734223530490,0.8959179,3861.7,3860.7,3.0]
[1734223532479,0.8959179,3861.7,3860.7,5.59016]
[1734223532724,0.8959179,3861.7,3860.8,0.83149117]
[1734223539146,0.8959179,3861.7,3860.9,0.02589843]